[Event "*** SCC Grand Prix: Titled Tuesday Blitz"]
[Site "Chess.com"]
[Date "2020.07.14"]
[Round "7"]
[White "Juanovic"]
[Black "MariaFominykh"]
[Result "1/2-1/2"]
[WhiteElo "2092"]
[BlackElo "2268"]
[TimeControl "180+1"]
[EndTime "11:20:47 PDT"]
[Termination "Game drawn by repetition"]

1. e4 {[%clk 0:03:00.9]} 1... e6 {[%clk 0:02:58.7]} 2. d4 {[%clk 0:03:00.2]}
2... d5 {[%clk 0:02:58.5]} 3. Nc3 {[%clk 0:02:59.7]} 3... Nf6 {[%clk 0:02:56.2]}
4. Bg5 {[%clk 0:02:58.1]} 4... dxe4 {[%clk 0:02:52.7]} 5. Nxe4 {[%clk
0:02:57.7]} 5... Be7 {[%clk 0:02:52.9]} 6. Nxf6+ {[%clk 0:02:54.4]} 6... Bxf6
{[%clk 0:02:50.2]} 7. Bxf6 {[%clk 0:02:54.6]} 7... Qxf6 {[%clk 0:02:50.2]} 8.
Nf3 {[%clk 0:02:55.2]} 8... O-O {[%clk 0:02:49.5]} 9. Bd3 {[%clk 0:02:51.2]}
9... c5 {[%clk 0:02:41.3]} 10. c3 {[%clk 0:02:46.6]} 10... cxd4 {[%clk
0:02:31.5]} 11. Nxd4 {[%clk 0:02:45.9]} 11... e5 {[%clk 0:02:20.5]} 12. Nb5
{[%clk 0:02:25.9]} 12... Na6 {[%clk 0:02:09.7]} 13. O-O {[%clk 0:02:24.6]} 13...
Be6 {[%clk 0:01:44.1]} 14. Qe2 {[%clk 0:01:55.4]} 14... Bd5 {[%clk 0:01:19.6]}
15. Be4 {[%clk 0:01:40.5]} 15... Rad8 {[%clk 0:01:14.4]} 16. Rad1 {[%clk
0:01:34.1]} 16... Bxe4 {[%clk 0:01:04.2]} 17. Qxe4 {[%clk 0:01:35]} 17... Nc5
{[%clk 0:01:04.2]} 18. Qe3 {[%clk 0:01:25]} 18... b6 {[%clk 0:00:46.8]} 19. Nxa7
{[%clk 0:01:09.1]} 19... Ra8 {[%clk 0:00:46.2]} 20. Nb5 {[%clk 0:01:08.9]} 20...
Rxa2 {[%clk 0:00:43.7]} 21. b4 {[%clk 0:01:01.8]} 21... Ne6 {[%clk 0:00:40.4]}
22. g3 {[%clk 0:00:27.8]} 22... Ng5 {[%clk 0:00:38.6]} 23. h4 {[%clk 0:00:13]}
23... Nf3+ {[%clk 0:00:32.8]} 24. Kg2 {[%clk 0:00:13]} 24... e4 {[%clk
0:00:32.8]} 25. Nd4 {[%clk 0:00:09.9]} 25... Nxd4 {[%clk 0:00:26.2]} 26. Rxd4
{[%clk 0:00:09.7]} 26... Rc2 {[%clk 0:00:23.6]} 27. c4 {[%clk 0:00:05.4]} 27...
Qc6 {[%clk 0:00:19.5]} 28. Qxe4 {[%clk 0:00:05.5]} 28... Qxe4+ {[%clk
0:00:15.6]} 29. Rxe4 {[%clk 0:00:06.4]} 29... f5 {[%clk 0:00:14.9]} 30. Rd4
{[%clk 0:00:06.4]} 30... Rc8 {[%clk 0:00:14.6]} 31. Re1 {[%clk 0:00:06.1]} 31...
R2xc4 {[%clk 0:00:14.2]} 32. Rxc4 {[%clk 0:00:06.6]} 32... Rxc4 {[%clk
0:00:14.2]} 33. Rb1 {[%clk 0:00:07.5]} 33... Kf7 {[%clk 0:00:13.1]} 34. b5
{[%clk 0:00:07.4]} 34... Ke6 {[%clk 0:00:12.8]} 35. Rb3 {[%clk 0:00:07.7]} 35...
Kd6 {[%clk 0:00:12.3]} 36. Kf3 {[%clk 0:00:08.4]} 36... Kc5 {[%clk 0:00:12.2]}
37. Re3 {[%clk 0:00:08.2]} 37... Kxb5 {[%clk 0:00:11.8]} 38. Re5+ {[%clk
0:00:08.4]} 38... Rc5 {[%clk 0:00:12.1]} 39. Re7 {[%clk 0:00:09.2]} 39... g6
{[%clk 0:00:09.6]} 40. Rxh7 {[%clk 0:00:09.3]} 40... Rc6 {[%clk 0:00:09.9]} 41.
Rh6 {[%clk 0:00:08.9]} 41... Kc5 {[%clk 0:00:09.4]} 42. Kf4 {[%clk 0:00:08.9]}
42... b5 {[%clk 0:00:08.9]} 43. Kg5 {[%clk 0:00:09.6]} 43... b4 {[%clk
0:00:09.1]} 44. Rh8 {[%clk 0:00:05.9]} 44... b3 {[%clk 0:00:08.3]} 45. Rd8
{[%clk 0:00:05.3]} 45... b2 {[%clk 0:00:07.7]} 46. Rd1 {[%clk 0:00:05.7]} 46...
Kb4 {[%clk 0:00:07.1]} 47. Rb1 {[%clk 0:00:06]} 47... Kb3 {[%clk 0:00:07.1]} 48.
f3 {[%clk 0:00:06.2]} 48... Kc2 {[%clk 0:00:07]} 49. Rxb2+ {[%clk 0:00:06.6]}
49... Kxb2 {[%clk 0:00:07.5]} 50. g4 {[%clk 0:00:07]} 50... fxg4 {[%clk
0:00:07.3]} 51. fxg4 {[%clk 0:00:07.9]} 51... Kc3 {[%clk 0:00:07.5]} 52. h5
{[%clk 0:00:08.8]} 52... gxh5 {[%clk 0:00:07.5]} 53. gxh5 {[%clk 0:00:09.7]}
53... Kd4 {[%clk 0:00:07.4]} 54. h6 {[%clk 0:00:10.2]} 54... Ke5 {[%clk
0:00:05.5]} 55. h7 {[%clk 0:00:10.5]} 55... Rc8 {[%clk 0:00:05.5]} 56. Kg6
{[%clk 0:00:10.9]} 56... Ke6 {[%clk 0:00:05.3]} 57. Kg7 {[%clk 0:00:11.3]} 57...
Rc7+ {[%clk 0:00:05.5]} 58. Kg8 {[%clk 0:00:11.8]} 58... Rc8+ {[%clk 0:00:05.6]}
59. Kg7 {[%clk 0:00:12.4]} 59... Rc7+ {[%clk 0:00:05.8]} 60. Kg8 {[%clk
0:00:12.9]} 60... Rc8+ {[%clk 0:00:05.5]} 61. Kg7 {[%clk 0:00:13.4]} 1/2-1/2

[Event "*** SCC Grand Prix: Titled Tuesday Blitz"]
[Site "Chess.com"]
[Date "2020.07.14"]
[Round "7"]
[White "Hikaru"]
[Black "abykhovsky"]
[Result "1-0"]
[WhiteElo "3188"]
[BlackElo "2716"]
[TimeControl "180+1"]
[EndTime "11:20:48 PDT"]
[Termination "Hikaru won by resignation"]

1. Nf3 {[%clk 0:03:00.9]} 1... Nf6 {[%clk 0:02:59.1]} 2. b3 {[%clk 0:03:00.2]}
2... g6 {[%clk 0:02:57.6]} 3. Bb2 {[%clk 0:03:00.2]} 3... Bg7 {[%clk 0:02:58.5]}
4. d4 {[%clk 0:03:01]} 4... O-O {[%clk 0:02:58.6]} 5. e3 {[%clk 0:03:01.6]} 5...
d6 {[%clk 0:02:59.1]} 6. Be2 {[%clk 0:03:01.5]} 6... Nbd7 {[%clk 0:02:59.4]} 7.
O-O {[%clk 0:03:01.4]} 7... e5 {[%clk 0:02:59.8]} 8. dxe5 {[%clk 0:03:01.5]}
8... Ng4 {[%clk 0:02:59.9]} 9. c4 {[%clk 0:03:01.8]} 9... Ngxe5 {[%clk
0:02:57.6]} 10. Nc3 {[%clk 0:03:02.2]} 10... Nc5 {[%clk 0:02:56.9]} 11. Nxe5
{[%clk 0:02:58.1]} 11... Bxe5 {[%clk 0:02:53.9]} 12. Qd2 {[%clk 0:02:57.5]}
12... Be6 {[%clk 0:02:46.8]} 13. Rfd1 {[%clk 0:02:53.7]} 13... Re8 {[%clk
0:02:40.5]} 14. Rac1 {[%clk 0:02:53.6]} 14... Qh4 {[%clk 0:02:34.3]} 15. g3
{[%clk 0:02:49.1]} 15... Qh3 {[%clk 0:02:34.2]} 16. Nd5 {[%clk 0:02:11.8]} 16...
Bxd5 {[%clk 0:01:25]} 17. cxd5 {[%clk 0:02:11.6]} 17... Ne4 {[%clk 0:01:25.1]}
18. Qc2 {[%clk 0:02:11.1]} 18... Bxb2 {[%clk 0:01:14.3]} 19. Bf1 {[%clk
0:02:09.6]} 19... Qf5 {[%clk 0:00:55.1]} 20. Qxb2 {[%clk 0:02:08.5]} 20... Re7
{[%clk 0:00:55]} 21. Bg2 {[%clk 0:02:05.6]} 21... a5 {[%clk 0:00:54.2]} 22. Rd4
{[%clk 0:01:59.8]} 22... Nc5 {[%clk 0:00:52.1]} 23. Qd2 {[%clk 0:01:56]} 23...
h5 {[%clk 0:00:50.3]} 24. h3 {[%clk 0:01:55.9]} 24... Qf6 {[%clk 0:00:44.2]} 25.
Rcc4 {[%clk 0:01:49.6]} 25... Kg7 {[%clk 0:00:40.3]} 26. Kh2 {[%clk 0:01:48.9]}
26... Kg8 {[%clk 0:00:35.5]} 27. Rc2 {[%clk 0:01:48.2]} 27... Kg7 {[%clk
0:00:35.4]} 28. Rc3 {[%clk 0:01:48.2]} 28... Kg8 {[%clk 0:00:35]} 29. Rcc4
{[%clk 0:01:48.8]} 29... Kg7 {[%clk 0:00:35.2]} 30. Qc2 {[%clk 0:01:48.8]} 30...
Kg8 {[%clk 0:00:33.8]} 31. a3 {[%clk 0:01:49.1]} 31... Rae8 {[%clk 0:00:17.9]}
32. b4 {[%clk 0:01:48]} 32... axb4 {[%clk 0:00:18.4]} 33. axb4 {[%clk
0:01:48.9]} 33... Na6 {[%clk 0:00:18.9]} 34. Rc3 {[%clk 0:01:44]} 34... Qe5
{[%clk 0:00:18.4]} 35. h4 {[%clk 0:01:43.3]} 35... Qf6 {[%clk 0:00:18.6]} 36.
Rf4 {[%clk 0:01:43]} 36... Qe5 {[%clk 0:00:18.8]} 37. Qd2 {[%clk 0:01:43.4]}
37... Qg7 {[%clk 0:00:18.5]} 38. Bf1 {[%clk 0:01:43.5]} 38... Nb8 {[%clk
0:00:16.4]} 39. Bb5 {[%clk 0:01:43.7]} 39... Rd8 {[%clk 0:00:15.9]} 40. Rfc4
{[%clk 0:01:44.3]} 40... Rc8 {[%clk 0:00:15.5]} 41. Qa2 {[%clk 0:01:41.8]} 41...
Qf6 {[%clk 0:00:15.3]} 42. Rf4 {[%clk 0:01:40.8]} 42... Qxc3 {[%clk 0:00:14.8]}
43. Qa7 {[%clk 0:01:31.8]} 43... c6 {[%clk 0:00:13.5]} 44. Bf1 {[%clk
0:01:30.9]} 44... cxd5 {[%clk 0:00:12.6]} 45. Qb6 {[%clk 0:01:31.4]} 45... Qc7
{[%clk 0:00:12.2]} 46. Qd4 {[%clk 0:01:31.7]} 46... Nc6 {[%clk 0:00:12.1]} 47.
Qxd5 {[%clk 0:01:31.7]} 47... Ne5 {[%clk 0:00:12.5]} 48. Bh3 {[%clk 0:01:32.3]}
48... Rf8 {[%clk 0:00:10.7]} 49. Rf6 {[%clk 0:01:31.7]} 49... Qc6 {[%clk
0:00:10.5]} 50. Qd1 {[%clk 0:01:32.1]} 50... Ng4+ {[%clk 0:00:07.2]} 51. Bxg4
{[%clk 0:01:32.4]} 51... hxg4 {[%clk 0:00:08.1]} 52. h5 {[%clk 0:01:30.8]} 52...
gxh5 {[%clk 0:00:07.1]} 53. Rh6 {[%clk 0:01:25]} 53... Re5 {[%clk 0:00:07.1]}
54. Qd3 {[%clk 0:01:24.5]} 54... Qe4 {[%clk 0:00:04.9]} 55. Qxd6 {[%clk
0:01:25.1]} 55... Qf5 {[%clk 0:00:04.6]} 56. Rf6 {[%clk 0:01:23.9]} 56... Qg5
{[%clk 0:00:04.6]} 57. Kg1 {[%clk 0:01:18.4]} 57... Re6 {[%clk 0:00:04.9]} 58.
Rxe6 {[%clk 0:01:17.9]} 58... fxe6 {[%clk 0:00:05.8]} 59. Qxe6+ {[%clk
0:01:18.4]} 59... Rf7 {[%clk 0:00:06.4]} 60. Qc4 {[%clk 0:01:16.2]} 60... Qf5
{[%clk 0:00:06.5]} 61. Qa2 {[%clk 0:01:15.7]} 61... h4 {[%clk 0:00:06.2]} 62.
gxh4 {[%clk 0:01:10.6]} 62... Kh7 {[%clk 0:00:06.6]} 63. Qe2 {[%clk 0:01:06.2]}
63... Qf3 {[%clk 0:00:06.6]} 64. Qd3+ {[%clk 0:01:06.2]} 64... Qf5 {[%clk
0:00:06.8]} 65. Qe2 {[%clk 0:01:06.3]} 65... Qe4 {[%clk 0:00:07.1]} 66. b5
{[%clk 0:01:05.4]} 66... Qf5 {[%clk 0:00:07.2]} 67. b6 {[%clk 0:01:05.3]} 67...
Rf6 {[%clk 0:00:07.5]} 68. Qd2 {[%clk 0:00:59.3]} 68... Kh6 {[%clk 0:00:06.5]}
69. e4+ {[%clk 0:00:54.4]} 69... Qf4 {[%clk 0:00:06.7]} 70. Qe2 {[%clk 0:00:54]}
70... Rxb6 {[%clk 0:00:06.3]} 71. Qd3 {[%clk 0:00:52.7]} 71... Rf6 {[%clk
0:00:05.4]} 72. Qc2 {[%clk 0:00:52.2]} 72... Qxf2+ {[%clk 0:00:05.4]} 73. Qxf2
{[%clk 0:00:51.3]} 73... Rxf2 {[%clk 0:00:06.3]} 74. Kxf2 {[%clk 0:00:52.2]}
74... b5 {[%clk 0:00:06.8]} 75. e5 {[%clk 0:00:53]} 75... b4 {[%clk 0:00:06.6]}
76. e6 {[%clk 0:00:53.6]} 76... Kg6 {[%clk 0:00:07.1]} 77. h5+ {[%clk 0:00:54]}
77... Kf6 {[%clk 0:00:07.6]} 78. h6 {[%clk 0:00:54.6]} 78... b3 {[%clk
0:00:08.1]} 79. h7 {[%clk 0:00:55.2]} 79... Kg7 {[%clk 0:00:08.4]} 80. e7 {[%clk
0:00:55.8]} 1-0

[Event "*** SCC Grand Prix: Titled Tuesday Blitz"]
[Site "Chess.com"]
[Date "2020.07.14"]
[Round "7"]
[White "Manukyan_Artak"]
[Black "talaicito"]
[Result "1-0"]
[WhiteElo "2368"]
[BlackElo "2185"]
[TimeControl "180+1"]
[EndTime "11:20:50 PDT"]
[Termination "Manukyan_Artak won by resignation"]

1. e4 {[%clk 0:03:00.9]} 1... e5 {[%clk 0:03:00]} 2. Nf3 {[%clk 0:02:59.4]} 2...
Nc6 {[%clk 0:03:00.3]} 3. d4 {[%clk 0:02:59.4]} 3... exd4 {[%clk 0:02:59.3]} 4.
Nxd4 {[%clk 0:03:00.3]} 4... Qf6 {[%clk 0:02:59.4]} 5. Nxc6 {[%clk 0:02:57.5]}
5... Qxc6 {[%clk 0:02:58.6]} 6. Nc3 {[%clk 0:02:56.1]} 6... Bb4 {[%clk
0:02:59.1]} 7. Bd2 {[%clk 0:02:55.8]} 7... Bxc3 {[%clk 0:02:56.9]} 8. Bxc3
{[%clk 0:02:55.9]} 8... Qxe4+ {[%clk 0:02:57.1]} 9. Be2 {[%clk 0:02:56]} 9...
Nf6 {[%clk 0:02:56.5]} 10. O-O {[%clk 0:02:48.5]} 10... O-O {[%clk 0:02:49.3]}
11. Bxf6 {[%clk 0:02:43.5]} 11... gxf6 {[%clk 0:02:48.4]} 12. Bd3 {[%clk
0:02:39.7]} 12... Qh4 {[%clk 0:02:42.5]} 13. g3 {[%clk 0:02:28]} 13... Qh6
{[%clk 0:02:38.1]} 14. Re1 {[%clk 0:02:26.7]} 14... d6 {[%clk 0:02:36.6]} 15.
Re7 {[%clk 0:02:24.4]} 15... Be6 {[%clk 0:02:34.1]} 16. Rxc7 {[%clk 0:02:13.7]}
16... Rac8 {[%clk 0:02:28.2]} 17. Rxb7 {[%clk 0:01:58.1]} 17... Kh8 {[%clk
0:02:28]} 18. Qf3 {[%clk 0:01:51.4]} 18... Rg8 {[%clk 0:02:19.6]} 19. Rxa7
{[%clk 0:01:34.9]} 19... Rc5 {[%clk 0:02:18.8]} 20. Ra8 {[%clk 0:01:26.5]} 20...
Rh5 {[%clk 0:02:03.4]} 21. Rxg8+ {[%clk 0:01:19.2]} 21... Kxg8 {[%clk
0:02:04.3]} 22. h4 {[%clk 0:01:06.2]} 22... f5 {[%clk 0:01:51.6]} 23. a4 {[%clk
0:00:46.7]} 23... Qg6 {[%clk 0:01:51.2]} 24. Qf4 {[%clk 0:00:38.8]} 24... Qf6
{[%clk 0:01:35.8]} 25. c3 {[%clk 0:00:27.3]} 25... Bd5 {[%clk 0:01:24]} 26. Re1
{[%clk 0:00:25.1]} 26... Kg7 {[%clk 0:01:14.4]} 27. a5 {[%clk 0:00:23.8]} 27...
Qd8 {[%clk 0:01:02.2]} 28. Qd4+ {[%clk 0:00:22.4]} 28... Qf6 {[%clk 0:00:57.4]}
29. Qxd5 {[%clk 0:00:19.9]} 29... Kh6 {[%clk 0:00:56.8]} 30. Qf3 {[%clk
0:00:18.7]} 30... f4 {[%clk 0:00:55.1]} 31. Qxf4+ {[%clk 0:00:18.3]} 31... Qxf4
{[%clk 0:00:54.2]} 32. gxf4 {[%clk 0:00:19.2]} 32... Rxa5 {[%clk 0:00:54.2]} 33.
b4 {[%clk 0:00:18.5]} 33... Ra3 {[%clk 0:00:53.7]} 34. Rc1 {[%clk 0:00:18.3]}
34... Rb3 {[%clk 0:00:51.3]} 35. Bc4 {[%clk 0:00:17.1]} 35... Rb2 {[%clk
0:00:49.5]} 36. Bxf7 {[%clk 0:00:17.5]} 36... Kg7 {[%clk 0:00:49.6]} 37. Bd5
{[%clk 0:00:17.4]} 37... Kf6 {[%clk 0:00:49.8]} 38. Be4 {[%clk 0:00:17.5]} 38...
h6 {[%clk 0:00:49.3]} 39. Kg2 {[%clk 0:00:17.4]} 39... Ke6 {[%clk 0:00:49.3]}
40. Rc2 {[%clk 0:00:15.9]} 40... Rb3 {[%clk 0:00:47.8]} 41. Kf3 {[%clk 0:00:13]}
41... d5 {[%clk 0:00:47]} 42. Bd3 {[%clk 0:00:13.3]} 42... Kf6 {[%clk
0:00:46.4]} 43. Ke3 {[%clk 0:00:13.7]} 43... Ke6 {[%clk 0:00:44.9]} 44. Kd4
{[%clk 0:00:14]} 44... Kd6 {[%clk 0:00:38.7]} 45. b5 {[%clk 0:00:14.2]} 45...
Rb1 {[%clk 0:00:36.9]} 46. Re2 {[%clk 0:00:14]} 46... Rb3 {[%clk 0:00:30.5]} 47.
Re5 {[%clk 0:00:12.8]} 47... Rb2 {[%clk 0:00:25.8]} 48. Rxd5+ {[%clk 0:00:13]}
48... Kc7 {[%clk 0:00:25]} 49. Rh5 {[%clk 0:00:13]} 49... Rxf2 {[%clk 0:00:24]}
50. f5 {[%clk 0:00:11.5]} 50... Rf4+ {[%clk 0:00:23.3]} 51. Ke5 {[%clk
0:00:11.4]} 51... Rf3 {[%clk 0:00:23.1]} 52. Ke4 {[%clk 0:00:10.2]} 52... Rf2
{[%clk 0:00:16.7]} 53. Rxh6 {[%clk 0:00:10.4]} 53... Rb2 {[%clk 0:00:14.9]} 54.
b6+ {[%clk 0:00:10.8]} 54... Kb7 {[%clk 0:00:14.2]} 55. Ke5 {[%clk 0:00:11.1]}
55... Rd2 {[%clk 0:00:13.6]} 56. Be4+ {[%clk 0:00:11.3]} 56... Ka6 {[%clk
0:00:12.2]} 57. b7+ {[%clk 0:00:12.2]} 57... Ka7 {[%clk 0:00:12.4]} 58. Rh8
{[%clk 0:00:11.6]} 58... Rb2 {[%clk 0:00:12.3]} 59. Ra8+ {[%clk 0:00:10.8]} 1-0

[Event "*** SCC Grand Prix: Titled Tuesday Blitz"]
[Site "Chess.com"]
[Date "2020.07.14"]
[Round "7"]
[White "KobyKalavannan"]
[Black "blitzking1729"]
[Result "0-1"]
[WhiteElo "2729"]
[BlackElo "2591"]
[TimeControl "180+1"]
[EndTime "11:20:51 PDT"]
[Termination "blitzking1729 won on time"]

1. d4 {[%clk 0:03:00.9]} 1... d5 {[%clk 0:02:58.6]} 2. Nf3 {[%clk 0:03:01]} 2...
Nf6 {[%clk 0:02:58.2]} 3. c4 {[%clk 0:03:01.2]} 3... e6 {[%clk 0:02:58.1]} 4. g3
{[%clk 0:03:01.1]} 4... c5 {[%clk 0:02:57.5]} 5. cxd5 {[%clk 0:03:00.7]} 5...
exd5 {[%clk 0:02:57.2]} 6. Bg2 {[%clk 0:03:01.3]} 6... Nc6 {[%clk 0:02:57]} 7.
O-O {[%clk 0:03:01.4]} 7... Be7 {[%clk 0:02:56.9]} 8. dxc5 {[%clk 0:03:01.8]}
8... Bxc5 {[%clk 0:02:56.7]} 9. a3 {[%clk 0:03:02.4]} 9... a6 {[%clk 0:02:53.4]}
10. b4 {[%clk 0:03:02.5]} 10... Ba7 {[%clk 0:02:53.1]} 11. Qd3 {[%clk
0:02:53.8]} 11... O-O {[%clk 0:02:51]} 12. Nc3 {[%clk 0:02:52.6]} 12... d4
{[%clk 0:02:48.6]} 13. Na4 {[%clk 0:02:45.1]} 13... Bg4 {[%clk 0:02:47.9]} 14.
Bg5 {[%clk 0:02:44.3]} 14... h6 {[%clk 0:02:45.5]} 15. Bf4 {[%clk 0:02:41.6]}
15... Re8 {[%clk 0:02:44.5]} 16. Rac1 {[%clk 0:02:39.3]} 16... Bh5 {[%clk
0:02:32.2]} 17. Nc5 {[%clk 0:02:29.9]} 17... Bg6 {[%clk 0:02:26]} 18. Nxb7
{[%clk 0:02:20.1]} 18... Qb6 {[%clk 0:02:19.5]} 19. Qc4 {[%clk 0:02:11.9]} 19...
Qxb7 {[%clk 0:02:13]} 20. Qxc6 {[%clk 0:01:59.7]} 20... Qxc6 {[%clk 0:02:11.7]}
21. Rxc6 {[%clk 0:02:00.6]} 21... Rxe2 {[%clk 0:02:11.6]} 22. Rxa6 {[%clk
0:01:46.9]} 22... Bd3 {[%clk 0:01:52]} 23. Ra5 {[%clk 0:01:46.3]} 23... Ree8
{[%clk 0:01:50.4]} 24. Nxd4 {[%clk 0:01:05]} 24... Bxf1 {[%clk 0:01:31.4]} 25.
Bxa8 {[%clk 0:01:03.7]} 25... Bh3 {[%clk 0:01:30.5]} 26. Nf3 {[%clk 0:00:37.7]}
26... Rd8 {[%clk 0:01:12.3]} 27. Bd2 {[%clk 0:00:22.7]} 27... Rxa8 {[%clk
0:00:52]} 28. b5 {[%clk 0:00:22.8]} 28... Bg4 {[%clk 0:00:31.4]} 29. Ne5 {[%clk
0:00:21.3]} 29... Ne4 {[%clk 0:00:23.6]} 30. b6 {[%clk 0:00:18.7]} 30... Nxd2
{[%clk 0:00:22.6]} 31. Rxa7 {[%clk 0:00:18]} 31... Rb8 {[%clk 0:00:16.7]} 32. b7
{[%clk 0:00:15.2]} 32... Nf3+ {[%clk 0:00:11.2]} 33. Nxf3 {[%clk 0:00:04.9]}
33... Bxf3 {[%clk 0:00:11.1]} 34. a4 {[%clk 0:00:03.9]} 34... Rxb7 {[%clk
0:00:10.6]} 35. Rxb7 {[%clk 0:00:02.8]} 35... Bxb7 {[%clk 0:00:09.7]} 36. Kf1
{[%clk 0:00:03.7]} 36... Kf8 {[%clk 0:00:09.8]} 37. Ke2 {[%clk 0:00:03.7]} 37...
Ke7 {[%clk 0:00:10.3]} 38. Kd3 {[%clk 0:00:04.3]} 38... Kd6 {[%clk 0:00:10.9]}
39. Kc4 {[%clk 0:00:05]} 39... Kc6 {[%clk 0:00:10.8]} 40. Kb4 {[%clk 0:00:05.4]}
40... Kb6 {[%clk 0:00:10.9]} 41. a5+ {[%clk 0:00:05.4]} 41... Ka6 {[%clk
0:00:11.1]} 42. Kc5 {[%clk 0:00:05.9]} 42... Kxa5 {[%clk 0:00:10.9]} 43. Kd6
{[%clk 0:00:06.5]} 43... g6 {[%clk 0:00:10.9]} 44. Ke7 {[%clk 0:00:06.4]} 44...
Bd5 {[%clk 0:00:10.9]} 45. Kf6 {[%clk 0:00:05.7]} 45... h5 {[%clk 0:00:11]} 46.
h3 {[%clk 0:00:05.8]} 46... Kb4 {[%clk 0:00:10.4]} 47. g4 {[%clk 0:00:05.2]}
47... hxg4 {[%clk 0:00:10.5]} 48. hxg4 {[%clk 0:00:06.1]} 48... Kc5 {[%clk
0:00:10.6]} 49. Ke5 {[%clk 0:00:04.4]} 49... Ba2 {[%clk 0:00:08.2]} 50. f4
{[%clk 0:00:04]} 50... Kc4 {[%clk 0:00:07]} 51. f5 {[%clk 0:00:03.3]} 51... gxf5
{[%clk 0:00:06.4]} 52. Kxf5 {[%clk 0:00:03.9]} 52... Kd4 {[%clk 0:00:06.4]} 53.
g5 {[%clk 0:00:03.3]} 53... Bb1+ {[%clk 0:00:06.1]} 54. Kf6 {[%clk 0:00:01.8]}
54... Bg6 {[%clk 0:00:07]} 0-1

[Event "*** SCC Grand Prix: Titled Tuesday Blitz"]
[Site "Chess.com"]
[Date "2020.07.14"]
[Round "7"]
[White "davigator"]
[Black "WildTricks"]
[Result "0-1"]
[WhiteElo "2357"]
[BlackElo "2516"]
[TimeControl "180+1"]
[EndTime "11:20:51 PDT"]
[Termination "WildTricks won by resignation"]

1. e4 {[%clk 0:03:00.9]} 1... c5 {[%clk 0:02:59.6]} 2. Nf3 {[%clk 0:02:59.9]}
2... d6 {[%clk 0:02:59.7]} 3. d4 {[%clk 0:02:59.9]} 3... cxd4 {[%clk 0:03:00.6]}
4. Nxd4 {[%clk 0:02:59.8]} 4... Nf6 {[%clk 0:03:00.4]} 5. Nc3 {[%clk 0:02:59.7]}
5... a6 {[%clk 0:03:00.4]} 6. Bg5 {[%clk 0:02:59.5]} 6... Nbd7 {[%clk
0:03:00.3]} 7. f3 {[%clk 0:02:59]} 7... b5 {[%clk 0:02:57]} 8. a3 {[%clk
0:02:58.1]} 8... Bb7 {[%clk 0:02:56]} 9. Qd2 {[%clk 0:02:58.2]} 9... e6 {[%clk
0:02:53.4]} 10. O-O-O {[%clk 0:02:57.5]} 10... Be7 {[%clk 0:02:53.2]} 11. h4
{[%clk 0:02:57.3]} 11... h6 {[%clk 0:02:52.3]} 12. Be3 {[%clk 0:02:56.5]} 12...
Qc7 {[%clk 0:02:52.6]} 13. Bxb5 {[%clk 0:02:45.7]} 13... axb5 {[%clk 0:02:45.8]}
14. Ndxb5 {[%clk 0:02:46.6]} 14... Qc6 {[%clk 0:02:35.1]} 15. Nxd6+ {[%clk
0:02:47.5]} 15... Bxd6 {[%clk 0:02:20.6]} 16. Qxd6 {[%clk 0:02:48.4]} 16... Qxd6
{[%clk 0:02:20.6]} 17. Rxd6 {[%clk 0:02:48.9]} 17... Ke7 {[%clk 0:02:20.6]} 18.
Rhd1 {[%clk 0:02:48.9]} 18... Rhc8 {[%clk 0:02:20.2]} 19. Bf4 {[%clk 0:02:39.4]}
19... Bc6 {[%clk 0:02:01.4]} 20. R6d2 {[%clk 0:02:26.7]} 20... Nb6 {[%clk
0:01:55.5]} 21. Bd6+ {[%clk 0:02:25.6]} 21... Ke8 {[%clk 0:01:54.5]} 22. Rd4
{[%clk 0:02:16.7]} 22... Bd7 {[%clk 0:01:45.9]} 23. Be5 {[%clk 0:01:54.4]} 23...
Ra7 {[%clk 0:01:42.2]} 24. Ne2 {[%clk 0:01:46.2]} 24... Nc4 {[%clk 0:01:29.2]}
25. Bxf6 {[%clk 0:01:42.6]} 25... gxf6 {[%clk 0:01:30.1]} 26. R4d3 {[%clk
0:01:32.2]} 26... Rb7 {[%clk 0:01:18.4]} 27. Nf4 {[%clk 0:01:23.2]} 27... Nxb2
{[%clk 0:01:15]} 28. Rxd7 {[%clk 0:01:22.8]} 28... Rxd7 {[%clk 0:01:11.7]} 29.
Rxd7 {[%clk 0:01:22.5]} 29... Kxd7 {[%clk 0:01:12.6]} 30. Kxb2 {[%clk
0:01:22.1]} 30... Rg8 {[%clk 0:00:58.6]} 31. g4 {[%clk 0:01:19.5]} 31... f5
{[%clk 0:00:55.2]} 32. exf5 {[%clk 0:01:10.4]} 32... exf5 {[%clk 0:00:54.2]} 33.
g5 {[%clk 0:01:01.9]} 33... hxg5 {[%clk 0:00:53.1]} 34. hxg5 {[%clk 0:01:02.5]}
34... Rxg5 {[%clk 0:00:51.7]} 35. Nd3 {[%clk 0:01:03.1]} 35... Kd6 {[%clk
0:00:48.2]} 36. f4 {[%clk 0:01:02.7]} 36... Rg8 {[%clk 0:00:47.3]} 37. a4 {[%clk
0:00:59.7]} 37... Rb8+ {[%clk 0:00:42.1]} 38. Kc3 {[%clk 0:00:59.5]} 38... Kd5
{[%clk 0:00:37.9]} 39. Ne5 {[%clk 0:00:57]} 39... Rb7 {[%clk 0:00:32.5]} 40. Nd3
{[%clk 0:00:54.2]} 40... Rb8 {[%clk 0:00:27.8]} 41. Nb4+ {[%clk 0:00:51.9]}
41... Ke4 {[%clk 0:00:26.6]} 42. Nd3 {[%clk 0:00:52.5]} 42... Ke3 {[%clk
0:00:22.9]} 43. a5 {[%clk 0:00:50.1]} 43... Rb5 {[%clk 0:00:21.7]} 44. a6 {[%clk
0:00:48.8]} 44... Ra5 {[%clk 0:00:20.9]} 45. Ne5 {[%clk 0:00:42.3]} 45... Rxa6
{[%clk 0:00:18.1]} 46. Nxf7 {[%clk 0:00:42.5]} 46... Kxf4 {[%clk 0:00:18.1]} 47.
Kd4 {[%clk 0:00:41.4]} 47... Rc6 {[%clk 0:00:15.6]} 48. c4 {[%clk 0:00:40.9]}
48... Rc7 {[%clk 0:00:14.1]} 49. Nd6 {[%clk 0:00:39.6]} 49... Kg4 {[%clk
0:00:13.8]} 50. c5 {[%clk 0:00:37.8]} 50... f4 {[%clk 0:00:13.8]} 51. Kd5 {[%clk
0:00:35.5]} 51... f3 {[%clk 0:00:11.8]} 52. Ne4 {[%clk 0:00:36.1]} 52... Re7
{[%clk 0:00:11.7]} 53. Nf2+ {[%clk 0:00:35.9]} 53... Kg3 {[%clk 0:00:11]} 54.
Nd3 {[%clk 0:00:36]} 54... Rd7+ {[%clk 0:00:10.1]} 55. Ke4 {[%clk 0:00:35.4]}
55... Rxd3 {[%clk 0:00:09.1]} 56. Kxd3 {[%clk 0:00:35.6]} 56... f2 {[%clk
0:00:09.6]} 57. Kd4 {[%clk 0:00:32.3]} 57... f1=Q {[%clk 0:00:08.8]} 58. c6
{[%clk 0:00:31.6]} 58... Qf8 {[%clk 0:00:09.7]} 59. Kd5 {[%clk 0:00:31.1]} 59...
Qc8 {[%clk 0:00:10.6]} 60. Kd6 {[%clk 0:00:31.2]} 60... Kg4 {[%clk 0:00:11.4]}
61. c7 {[%clk 0:00:31.6]} 61... Kg5 {[%clk 0:00:11.8]} 62. Kc6 {[%clk
0:00:32.5]} 62... Kf6 {[%clk 0:00:12]} 63. Kd6 {[%clk 0:00:33.4]} 63... Kf7
{[%clk 0:00:12.6]} 64. Kc6 {[%clk 0:00:33.7]} 64... Ke7 {[%clk 0:00:13.2]} 65.
Kb6 {[%clk 0:00:33.9]} 65... Kd7 {[%clk 0:00:13.3]} 66. Ka7 {[%clk 0:00:34.3]}
66... Qxc7+ {[%clk 0:00:10.8]} 67. Ka8 {[%clk 0:00:34.4]} 67... Qc5 {[%clk
0:00:08.9]} 68. Kb7 {[%clk 0:00:33.5]} 68... Qb4+ {[%clk 0:00:09.4]} 69. Ka8
{[%clk 0:00:31.8]} 69... Kc6 {[%clk 0:00:09.3]} 0-1